bitfinex-derivatives/quotes_BTCF0:USTF0_20250127
["timestamp","ask_amount","ask_price","bid_price","bid_amount"]
[1738002494309,0.201598,99252.0,99250.0,0.002]
[1738002494713,0.3608,99255.0,99250.0,0.002]
[1738002495016,0.3608,99255.0,99250.0,0.005]
[1738002495319,0.3608,99255.0,99241.0,0.01107809]
[1738002495517,0.3608,99255.0,99239.0,0.36095118]
[1738002495708,0.3608,99255.0,99250.0,0.003]
[1738002496418,0.3608,99255.0,99250.0,0.005]
[1738002497415,0.201594,99254.0,99250.0,0.005]
[1738002497617,0.201594,99254.0,99239.0,0.37196906]
[1738002497810,0.201587,99257.0,99250.0,0.002]
[1738002498205,0.36945339,99263.0,99250.0,0.002]
[1738002498421,0.2016,99251.0,99250.0,0.002]
[1738002498922,0.2016,99251.0,99250.0,0.003]
[1738002500509,0.2016,99251.0,99250.0,0.002]
[1738002500714,0.2016,99251.0,99250.0,0.003]
[1738002501023,0.2016,99251.0,99250.0,0.001]
[1738002501210,0.2016,99251.0,99250.0,0.003]
[1738002501617,0.2016,99251.0,99250.0,0.002]
[1738002502413,0.2016,99251.0,99250.0,0.001]
[1738002503213,0.3608,99252.0,99250.0,0.001]
[1738002504129,0.3608,99252.0,99245.0,0.19960683]
[1738002504809,0.00879707,99270.0,99250.0,0.002]
[1738002505018,0.201561,99270.0,99258.0,0.201583]
[1738002505420,0.3608,99273.0,99256.0,0.3608]
[1738002505618,0.201564,99268.0,99256.0,0.3608]
[1738002506015,0.3608,99273.0,99256.0,0.3608]
[1738002506215,0.36095118,99271.0,99257.0,0.0917]
[1738002507313,0.36095118,99271.0,99263.0,0.201574]
[1738002507914,0.36095118,99271.0,99258.0,0.201584]
[1738002508113,0.56350918,99271.0,99258.0,0.201584]
[1738002508719,0.56550918,99271.0,99257.0,0.0917]
[1738002508924,0.00315118,99271.0,99264.0,0.3608]
[1738002509127,0.00315118,99271.0,99266.0,0.201567]
[1738002509318,0.00015118,99271.0,99264.0,0.3608]
[1738002509626,0.00015118,99271.0,99270.0,0.20156]
[1738002509627,0.00115118,99271.0,99270.0,0.20156]
[1738002509813,0.00115118,99271.0,99266.0,0.201568]
[1738002510015,0.00115118,99271.0,99267.0,0.201565]
[1738002510521,0.00115118,99271.0,99270.0,0.20156]
[1738002511219,0.00115118,99271.0,99266.0,0.0948]
[1738002511220,0.00015118,99271.0,99266.0,0.0948]
[1738002511421,0.00315118,99271.0,99266.0,0.0948]
[1738002511615,0.201583,99259.0,99257.0,0.0917]
[1738002512530,0.201583,99259.0,99238.0,0.0948]
[1738002512722,0.201583,99259.0,99239.0,0.0899]
[1738002512919,0.201583,99259.0,99244.0,0.201613]
[1738002513126,0.201583,99259.0,99245.0,0.00871184]
[1738002513430,0.201583,99259.0,99247.0,0.201606]
[1738002514023,0.21133938,99259.0,99245.0,0.00871184]
[1738002515424,0.21033938,99259.0,99245.0,0.00871184]
[1738002515628,0.21033938,99259.0,99243.0,0.201614]
[1738002516017,0.21033938,99259.0,99239.0,0.0899]
[1738002517530,0.21133938,99259.0,99239.0,0.0899]
[1738002518031,0.21133938,99259.0,99242.0,0.201617]
[1738002518437,0.00975638,99259.0,99240.0,0.14551632]
[1738002518636,0.00975638,99259.0,99249.0,0.3608]
[1738002518936,0.00975638,99259.0,99253.0,0.201594]
[1738002519334,0.21133938,99259.0,99249.0,0.3608]
[1738002519519,0.001,99259.0,99258.0,0.20173518]
[1738002519724,0.001,99259.0,99258.0,1.50015118]
[1738002519933,0.00015118,99271.0,99270.0,0.20156]
[1738002520135,0.4529,99302.0,99270.0,0.20156]
[1738002520136,0.201509,99295.0,99278.0,0.201543]
[1738002520339,0.3608,99293.0,99279.0,0.0891]
[1738002520631,0.55454144,99303.0,99291.0,0.201517]
[1738002521028,0.19374144,99303.0,99291.0,0.201517]
[1738002521233,0.0001511,99301.0,99287.0,0.050381]
[1738002521427,0.0001511,99301.0,99299.0,0.2015]
[1738002521827,0.0001511,99301.0,99272.0,0.050388]
[1738002521828,0.0001511,99301.0,99291.0,0.201518]
[1738002522031,0.0001511,99301.0,99292.0,0.01558561]
[1738002522237,0.0001511,99301.0,99291.0,1.702998]
[1738002522436,0.002,99292.0,99291.0,0.201518]
[1738002524039,0.002,99292.0,99291.0,0.21026686]
[1738002524236,0.002,99292.0,99291.0,0.00874886]
[1738002524430,0.002,99292.0,99288.0,0.201523]
[1738002524626,0.3608,99300.0,99285.0,0.3608]
[1738002525039,0.5623,99300.0,99285.0,0.3608]
[1738002525233,0.001,99292.0,99285.0,0.3608]
[1738002525637,0.001,99292.0,99285.0,0.3696531]
[1738002525831,0.001,99292.0,99290.0,0.201519]
[1738002526440,0.001,99292.0,99285.0,0.3706531]
[1738002526942,0.3608,99300.0,99285.0,0.5731821]
[1738002527534,0.3608,99300.0,99286.0,0.201527]
[1738002527741,0.3608,99300.0,99287.0,0.201525]
[1738002527941,0.3608,99300.0,99285.0,0.3706531]
[1738002528243,0.0001511,99301.0,99294.0,0.3608]
[1738002528428,0.0001511,99301.0,99298.0,0.201503]
[1738002528830,0.0001511,99301.0,99299.0,0.201501]
[1738002529548,0.3608,99333.0,99300.0,0.0912]
[1738002529733,0.3608,99333.0,99314.0,0.3608]
[1738002529931,0.201439,99330.0,99314.0,0.56227]
[1738002530332,0.3608,99333.0,99314.0,0.3608]
[1738002530530,0.3608,99333.0,99321.0,0.201457]
[1738002530734,0.20876733,99328.0,99321.0,0.201457]
[1738002530945,0.20876733,99328.0,99314.0,0.56327]
[1738002531244,0.20876733,99328.0,99314.0,0.3618]
[1738002531541,0.20876733,99328.0,99320.0,0.201459]
[1738002532640,0.20876733,99328.0,99321.0,0.0963]
[1738002533835,0.00399,99322.0,99321.0,0.0963]
[1738002534342,0.00299,99322.0,99321.0,0.0963]
[1738002534539,0.00399,99322.0,99321.0,0.0963]
[1738002534846,0.00399,99322.0,99314.0,0.3608]
[1738002535034,0.00399,99322.0,99318.0,0.00858601]
[1738002535636,0.00399,99322.0,99315.0,0.201469]
[1738002536235,0.00399,99322.0,99314.0,0.3608]
[1738002536236,0.00399,99322.0,99317.0,0.201464]
[1738002536436,0.00399,99322.0,99321.0,0.201457]
[1738002536845,0.00299,99322.0,99321.0,0.201457]
[1738002538042,0.00399,99322.0,99321.0,0.201457]
[1738002538538,0.00399,99322.0,99315.0,0.001]
[1738002538944,0.00399,99322.0,99315.0,0.202469]
[1738002539149,0.00399,99322.0,99315.0,0.201469]
[1738002539338,0.00399,99322.0,99314.0,0.36970816]
[1738002539646,0.00399,99322.0,99317.0,0.201465]
[1738002539840,0.00399,99322.0,99314.0,0.36970816]
[1738002540448,0.00299,99322.0,99318.0,0.201462]
[1738002541344,0.00299,99322.0,99319.0,0.20146]
[1738002541546,0.00299,99322.0,99314.0,0.36970816]
[1738002541734,0.00299,99322.0,99315.0,0.201468]
[1738002541936,0.00299,99322.0,99314.0,0.36970816]
[1738002542438,0.201469,99315.0,99314.0,0.3608]
[1738002543249,0.201481,99309.0,99308.0,0.0001511]
[1738002543551,0.562281,99309.0,99308.0,0.0001511]
[1738002544946,0.562281,99309.0,99308.0,0.0021511]
[1738002545146,0.562281,99309.0,99308.0,0.0031511]
[1738002546854,0.562281,99309.0,99308.0,0.0011511]
[1738002547049,0.562281,99309.0,99308.0,0.0031511]
[1738002547242,0.562281,99309.0,99296.0,0.49664]
[1738002547243,0.201501,99300.0,99296.0,0.49664]
[1738002547548,0.201492,99304.0,99296.0,0.49664]
[1738002547746,0.3608,99309.0,99308.0,0.001]
[1738002548251,0.3608,99311.0,99308.0,0.00285469]
[1738002548452,0.17835435,99325.0,99309.0,1.5]
[1738002548453,0.0001511,99318.0,99309.0,1.5]
[1738002548750,0.0001511,99318.0,99316.0,0.201466]
[1738002549141,0.0001511,99318.0,99317.0,0.201465]
[1738002549741,0.0001511,99318.0,99314.0,0.3608]
[1738002550544,0.0011511,99318.0,99314.0,0.3608]
[1738002550751,0.201465,99317.0,99310.0,0.0907]
[1738002550940,0.08957802,99311.0,99310.0,0.0907]
[1738002551142,0.08957802,99311.0,99290.0,0.45819195]
[1738002551340,0.08957802,99311.0,99298.0,0.00706639]
[1738002551846,0.29105702,99311.0,99298.0,0.00706639]
[1738002552046,0.08957802,99311.0,99298.0,0.00706639]
[1738002552249,0.201489,99306.0,99298.0,0.00706639]
[1738002552749,0.20149,99305.0,99298.0,0.00706639]
[1738002553653,0.09739195,99310.0,99298.0,0.00706639]
[1738002553850,0.2015,99300.0,99296.0,0.49664]
[1738002554351,0.3608,99304.0,99296.0,0.49664]
[1738002554649,0.08957802,99306.0,99296.0,0.49664]
[1738002554952,0.08957802,99306.0,99298.0,0.201503]
[1738002555147,0.08957802,99306.0,99296.0,0.59543195]
[1738002555344,0.08957802,99306.0,99296.0,0.49804]
[1738002555544,0.08957802,99306.0,99296.0,0.49664]
[1738002556147,0.08957802,99306.0,99296.0,0.698148]
[1738002556343,0.08957802,99306.0,99298.0,0.201503]
[1738002556951,0.08957802,99306.0,99303.0,0.201493]
[1738002557152,0.08957802,99306.0,99299.0,0.0001511]
[1738002557856,0.29106602,99306.0,99299.0,0.0001511]
[1738002558237,0.201494,99303.0,99299.0,0.0001511]
[1738002558549,0.11964078,99303.0,99299.0,0.0001511]
[1738002558750,0.2015,99300.0,99299.0,0.0001511]
[1738002559450,0.201508,99296.0,99295.0,0.00151061]
[1738002559664,0.562308,99296.0,99295.0,0.00151061]
[1738002560751,0.201526,99287.0,99286.0,0.0001511]
[1738002561059,0.562326,99287.0,99286.0,0.0001511]
[1738002561954,0.201526,99287.0,99286.0,0.0001511]
[1738002563354,0.3608,99288.0,99257.0,0.49652]
[1738002563553,0.20155,99275.0,99266.0,0.00744419]
[1738002563860,0.20155,99275.0,99260.0,0.0891]
[1738002563861,0.45819195,99280.0,99260.0,0.0891]
[1738002564049,0.201561,99270.0,99260.0,0.0891]
[1738002564355,0.20155,99275.0,99262.0,0.562375]
[1738002564544,0.562341,99280.0,99265.0,0.20308003]
[1738002564750,0.3608,99280.0,99265.0,0.20308003]
[1738002565049,0.201545,99278.0,99265.0,0.20308003]
[1738002565355,0.201547,99277.0,99265.0,0.00151103]
[1738002565764,0.3608,99280.0,99270.0,0.20156]
[1738002566063,0.3608,99280.0,99267.0,0.09739195]
[1738002566556,0.3608,99280.0,99268.0,0.201564]
[1738002567055,0.3608,99280.0,99265.0,0.00151103]
[1738002567257,0.3608,99280.0,99269.0,0.201562]
[1738002567862,0.3608,99280.0,99265.0,0.00151103]
[1738002568066,0.201543,99279.0,99265.0,0.00151103]
[1738002568252,0.45819195,99280.0,99265.0,0.00151103]
[1738002568452,0.201561,99270.0,99265.0,0.00151103]
[1738002568753,0.3608,99280.0,99265.0,0.00151103]
[1738002569158,0.201549,99276.0,99265.0,0.00151103]
[1738002569562,0.20155,99275.0,99265.0,0.00151103]
[1738002569757,0.20155,99275.0,99266.0,1.5]
[1738002571554,0.201554,99274.0,99266.0,1.5]
[1738002572157,0.201554,99274.0,99265.0,0.00151103]
[1738002572562,0.45819195,99280.0,99265.0,0.00151103]
[1738002573161,0.201556,99273.0,99265.0,0.00151103]
[1738002573367,0.201557,99272.0,99265.0,0.00151103]
[1738002573563,0.201543,99279.0,99265.0,0.00151103]
[1738002573870,0.201558,99272.0,99265.0,0.00151103]
[1738002574056,0.20156,99271.0,99265.0,0.00151103]
[1738002574257,0.201561,99270.0,99265.0,0.00151103]
[1738002576366,0.201561,99270.0,99266.0,0.3608]
[1738002576563,0.201564,99269.0,99265.0,0.00151103]
[1738002577967,0.0895,99278.0,99265.0,0.00151103]
[1738002578264,0.201559,99271.0,99265.0,0.00151103]
[1738002578574,0.201563,99269.0,99265.0,0.00151103]
[1738002579370,0.201569,99266.0,99265.0,0.00151103]
[1738002580260,0.201569,99266.0,99231.0,0.0924]
[1738002580261,0.201617,99242.0,99231.0,0.0924]
[1738002580463,0.201617,99242.0,99235.0,0.7376904]
[1738002580661,0.201624,99239.0,99237.0,0.2397304]
[1738002581157,0.201625,99238.0,99237.0,0.2397304]
[1738002581670,0.3608,99249.0,99237.0,0.2397304]
[1738002582063,0.20162,99241.0,99237.0,0.2397304]
[1738002582263,0.201606,99248.0,99237.0,0.2397304]
[1738002582572,0.36834647,99249.0,99237.0,0.2397304]
[1738002582762,0.201625,99238.0,99237.0,0.2397304]
[1738002583158,0.45801907,99249.0,99235.0,0.49656]
[1738002583361,0.3608,99236.0,99231.0,0.0924]
[1738002583565,0.201634,99234.0,99231.0,0.0924]
[1738002585365,0.201634,99234.0,99229.0,0.0973]
[1738002585366,0.201634,99234.0,99224.0,0.3608]
[1738002587766,0.0896726,99239.0,99224.0,0.3608]
[1738002587962,0.201628,99237.0,99224.0,0.3608]
[1738002588372,0.0896726,99239.0,99224.0,0.3608]
[1738002588373,0.201634,99234.0,99224.0,0.3608]
[1738002588681,0.201634,99234.0,99219.0,0.1855]
[1738002590079,0.201634,99234.0,99219.0,0.0949]
[1738002591073,0.201664,99219.0,99218.0,0.003]
[1738002591372,0.562464,99219.0,99218.0,0.003]
[1738002591582,0.562464,99219.0,99209.0,0.00151161]
[1738002591583,0.201682,99210.0,99209.0,0.00151161]
[1738002591763,0.562482,99210.0,99209.0,0.00151161]
[1738002592473,0.56999543,99210.0,99209.0,0.00151161]
[1738002592973,0.562482,99210.0,99209.0,0.00151161]
[1738002593278,0.46577478,99219.0,99209.0,0.00151161]
[1738002593480,0.201681,99211.0,99209.0,0.00151161]
[1738002594581,0.201673,99215.0,99209.0,0.00151161]
[1738002594879,0.46577478,99219.0,99209.0,0.00151161]
[1738002595183,0.201682,99210.0,99209.0,0.00151161]
[1738002601079,0.3608,99211.0,99209.0,0.00151161]
[1738002601381,0.562482,99211.0,99209.0,0.00151161]
[1738002601581,0.201683,99210.0,99209.0,0.00151161]
[1738002601877,0.3608,99211.0,99209.0,0.00151161]
[1738002602779,0.201682,99210.0,99209.0,0.00151161]
[1738002604281,0.3608,99211.0,99209.0,0.00151161]
[1738002604669,0.08943424,99222.0,99210.0,0.3608]
[1738002604878,0.3608,99248.0,99227.0,0.201648]
[1738002605077,0.3608,99266.0,99236.0,0.20163]
[1738002605392,0.489063,99269.0,99253.0,0.201594]
[1738002605569,0.297663,99269.0,99255.0,0.201591]
[1738002605769,0.00814533,99270.0,99259.0,0.3608]
[1738002605973,0.00814533,99270.0,99262.0,0.201577]
[1738002606285,0.23842629,99271.0,99259.0,0.3608]
[1738002607175,0.21261623,99263.0,99259.0,0.3608]
[1738002607384,0.21261623,99263.0,99262.0,0.201577]
[1738002608089,0.00015118,99271.0,99265.0,0.201571]
[1738002608276,0.00015118,99271.0,99268.0,0.3608]
[1738002608486,0.562305,99298.0,99279.0,0.201541]
[1738002608779,0.201497,99302.0,99282.0,0.201534]
[1738002608976,0.09739195,99310.0,99280.0,0.09739195]
[1738002609180,0.0079928,99302.0,99288.0,0.562323]
[1738002609377,0.09739195,99300.0,99288.0,0.3608]
[1738002609883,0.01199,99292.0,99280.0,0.0001511]
[1738002610274,0.01199,99292.0,99284.0,0.3608]
[1738002610485,0.01799,99292.0,99288.0,0.001]
[1738002611182,0.201521,99290.0,99288.0,0.001]
[1738002612379,0.201538,99281.0,99280.0,0.0001511]
[1738002612589,0.562338,99281.0,99280.0,0.0001511]
[1738002612887,0.201538,99281.0,99280.0,0.0001511]
[1738002615079,0.20153,99285.0,99280.0,0.0001511]
[1738002615393,0.20152,99290.0,99280.0,0.0001511]
[1738002615590,0.001,99281.0,99280.0,0.09754305]
[1738002615891,0.00299,99292.0,99282.0,0.201536]
[1738002616090,0.00299,99292.0,99283.0,0.0978]
[1738002616273,0.00299,99292.0,99283.0,0.299334]
[1738002616479,0.00299,99292.0,99289.0,0.3608]
[1738002616986,0.00299,99292.0,99283.0,0.0978]
[1738002617189,0.201527,99287.0,99283.0,0.0978]
[1738002617490,0.201537,99282.0,99280.0,0.0001511]
[1738002619586,0.202537,99282.0,99280.0,0.0001511]
[1738002620393,0.001,99282.0,99238.0,0.3608]
[1738002620580,0.3608,99265.0,99242.0,0.1839]
[1738002620776,0.201586,99258.0,99242.0,0.1839]
[1738002620986,0.562373,99265.0,99242.0,0.1839]
[1738002621179,0.201576,99263.0,99247.0,0.3608]
[1738002621494,0.201561,99270.0,99250.0,0.1462655]
[1738002621692,0.3608,99291.0,99247.0,0.3608]
[1738002621693,0.0001511,99265.0,99260.0,0.1462655]
[1738002621897,0.0001511,99265.0,99260.0,0.3478455]
[1738002622086,0.0001511,99265.0,99264.0,0.3608]
[1738002622480,0.201521,99290.0,99264.0,0.3608]
[1738002622481,0.201521,99290.0,99271.0,0.201558]
[1738002622689,0.00839537,99290.0,99272.0,0.4533]
[1738002622892,0.201527,99287.0,99272.0,0.5433]
[1738002623283,0.3608,99285.0,99272.0,0.5433]
[1738002623685,0.0001511,99288.0,99272.0,0.5433]
[1738002623880,0.201539,99281.0,99272.0,0.5443]
[1738002624090,0.2016761,99288.0,99272.0,0.5443]
[1738002624387,0.201554,99273.0,99272.0,0.001]
[1738002624683,0.562354,99273.0,99272.0,0.001]
[1738002625492,0.562354,99273.0,99272.0,0.003]
[1738002625995,0.562354,99273.0,99269.0,0.0001511]
[1738002625996,0.201561,99270.0,99269.0,0.0001511]
[1738002626298,0.3618,99273.0,99269.0,0.0001511]
[1738002626492,0.37012314,99273.0,99269.0,0.0001511]
[1738002626683,0.20156,99271.0,99269.0,0.0001511]
[1738002627591,0.37012314,99273.0,99269.0,0.0001511]
[1738002627796,0.3618,99273.0,99269.0,0.0001511]
[1738002628001,0.001,99273.0,99269.0,0.0001511]
[1738002628300,0.201541,99280.0,99269.0,0.0021511]
[1738002628503,0.36940991,99281.0,99269.0,0.01054657]
[1738002628799,0.3608,99281.0,99270.0,0.3331655]
[1738002629797,0.3608,99281.0,99270.0,0.3341655]
[1738002630896,0.0001511,99288.0,99279.0,0.3608]
[1738002631197,0.3608,99285.0,99270.0,0.0952]
[1738002631404,0.3608,99276.0,99270.0,0.002]
[1738002631698,0.0001511,99288.0,99278.0,0.201544]
[1738002631903,0.0001511,99288.0,99281.0,0.3608]
[1738002632295,0.0001511,99288.0,99281.0,0.562337]
[1738002632593,0.0001511,99288.0,99285.0,0.201529]
[1738002632794,0.0001511,99288.0,99281.0,0.3608]
[1738002632991,0.00299,99307.0,99281.0,0.3608]
[1738002632992,0.00299,99307.0,99301.0,0.201497]
[1738002633196,0.00299,99307.0,99302.0,0.295095]
[1738002633404,0.00299,99307.0,99303.0,0.201493]
[1738002633707,0.00299,99307.0,99304.0,0.201491]
[1738002633894,0.00299,99307.0,99303.0,0.0907]
[1738002634401,0.00599,99307.0,99301.0,0.3608]
[1738002634791,0.00599,99307.0,99305.0,0.201489]
[1738002635287,0.01399,99307.0,99306.0,0.0989]
[1738002636288,0.01099,99307.0,99306.0,0.0989]
[1738002636489,0.01399,99307.0,99306.0,0.0989]
[1738002637106,0.01099,99307.0,99306.0,0.0989]
[1738002637400,0.01399,99307.0,99306.0,0.0989]
[1738002637796,0.1553525,99326.0,99306.0,0.0989]
[1738002637992,0.3608,99327.0,99314.0,0.3608]
[1738002638196,0.3608,99327.0,99315.0,0.1924]
[1738002638904,0.00299,99337.0,99326.0,0.3608]
[1738002639201,0.009,99327.0,99326.0,0.3608]
[1738002639611,0.00015103,99331.0,99326.0,0.3608]
[1738002639905,0.013,99327.0,99326.0,0.3608]
[1738002640701,0.009,99327.0,99326.0,0.3608]
[1738002641298,0.001,99327.0,99326.0,0.3608]
[1738002643203,0.002,99327.0,99326.0,0.3608]
[1738002643789,0.002,99327.0,99322.0,0.00015103]
[1738002644001,0.2015,99300.0,99291.0,0.00869251]
[1738002644201,0.5623,99300.0,99287.0,0.2980376]
[1738002644896,0.5623,99300.0,99287.0,0.30641547]
[1738002645303,0.5623,99300.0,99290.0,0.00015103]
[1738002645700,0.201508,99296.0,99295.0,0.18063158]
[1738002647304,0.1805,99299.0,99295.0,0.18063158]
[1738002647512,0.1805,99299.0,99295.0,0.18163158]
[1738002647803,0.201508,99296.0,99295.0,0.18163158]
[1738002648397,0.202508,99296.0,99295.0,0.18063158]
[1738002648597,0.202508,99296.0,99295.0,0.18163158]
[1738002649107,0.201508,99296.0,99295.0,0.18263158]
[1738002649699,0.201508,99296.0,99295.0,0.002]
[1738002650100,0.1805,99299.0,99290.0,0.00015103]
[1738002650296,0.562318,99291.0,99290.0,0.00015103]
[1738002651007,0.201551,99275.0,99262.0,1.884776]
[1738002651210,0.562351,99275.0,99262.0,1.884776]
[1738002651407,0.562351,99275.0,99262.0,0.18468]
[1738002651706,0.201581,99260.0,99259.0,0.00151121]
[1738002652008,0.562381,99260.0,99259.0,0.00151121]
[1738002652500,0.3608,99260.0,99250.0,0.00015111]
[1738002652703,0.201599,99251.0,99250.0,0.00015111]
[1738002654211,0.562399,99251.0,99250.0,0.00215111]
[1738002655208,0.562399,99251.0,99250.0,0.00515111]
[1738002657004,0.562399,99251.0,99250.0,0.00415111]
[1738002657712,0.562399,99251.0,99250.0,0.00315111]
[1738002657897,0.562399,99251.0,99250.0,0.00215111]
[1738002658917,0.562399,99251.0,99250.0,0.00115111]
[1738002659409,0.562399,99251.0,99250.0,0.00015111]
[1738002659714,0.562399,99251.0,99250.0,0.00115111]
[1738002660208,0.562399,99251.0,99250.0,0.00015111]
[1738002661213,0.563399,99251.0,99250.0,0.00015111]
[1738002661719,0.3608,99260.0,99250.0,0.00215111]
[1738002662011,0.201567,99261.0,99250.0,0.14841661]
[1738002662211,0.201585,99253.0,99251.0,0.1812]
[1738002662605,0.050388,99268.0,99250.0,0.00215111]
[1738002662606,0.201587,99251.0,99250.0,0.00215111]
[1738002663412,0.201587,99251.0,99250.0,0.00315111]
[1738002663813,0.201587,99251.0,99250.0,0.00215111]
[1738002664018,0.3608,99258.0,99250.0,0.00515111]
[1738002664213,0.3608,99258.0,99250.0,0.00315111]
[1738002664514,0.3608,99258.0,99250.0,0.00115111]
[1738002665000,0.3608,99258.0,99251.0,0.201579]
[1738002665202,0.3608,99258.0,99252.0,0.201577]
[1738002665416,0.0914,99274.0,99252.0,0.3608]
[1738002665615,0.0914,99274.0,99260.0,0.3608]
[1738002665911,0.3608,99284.0,99261.0,0.092]
[1738002666106,0.3608,99284.0,99261.0,0.1869]
[1738002666416,0.00886594,99276.0,99268.0,0.562345]
[1738002666604,0.17806644,99293.0,99285.0,0.20151]
[1738002666912,0.17806644,99293.0,99286.0,0.3608]
[1738002667221,0.1966195,99330.0,99286.0,0.3608]
[1738002667222,0.201444,99318.0,99298.0,0.201483]
[1738002667511,0.0921,99329.0,99286.0,1.9528]
[1738002667512,0.1462655,99310.0,99297.0,0.3608]
[1738002667713,0.11861221,99300.0,99292.0,0.00015111]
[1738002667912,0.201493,99294.0,99292.0,0.00015111]
[1738002668513,0.11861221,99300.0,99292.0,0.00015111]
[1738002668718,0.201484,99298.0,99292.0,0.00015111]
[1738002669010,0.11861221,99300.0,99292.0,0.00015111]
[1738002669413,0.201493,99294.0,99292.0,0.00015111]
[1738002670802,0.201487,99297.0,99292.0,0.00015111]
[1738002671008,0.202493,99294.0,99292.0,0.00215111]
[1738002671717,0.201493,99294.0,99292.0,0.00515111]
[1738002671920,0.201479,99301.0,99292.0,0.00515111]
[1738002672116,0.201483,99299.0,99292.0,0.00515111]
[1738002672414,0.3608,99304.0,99292.0,0.00515111]
[1738002672617,0.00015111,99311.0,99298.0,0.3608]
[1738002672807,0.00015111,99311.0,99301.0,0.201476]
[1738002673009,0.00015111,99311.0,99300.0,0.1462655]
[1738002673212,0.00015111,99311.0,99310.0,0.3608]
[1738002674420,0.00015111,99311.0,99310.0,0.36956858]
[1738002675415,0.00015111,99311.0,99310.0,0.37256858]
[1738002675624,0.201422,99329.0,99312.0,0.201455]
[1738002675914,0.201425,99328.0,99312.0,0.201455]
[1738002676119,0.201425,99327.0,99312.0,0.201455]
[1738002676323,0.09763402,99336.0,99319.0,0.3608]
[1738002676511,0.201421,99329.0,99319.0,0.3608]
[1738002676918,0.201421,99329.0,99320.0,0.0914]
[1738002677116,0.00314102,99337.0,99328.0,0.3608]
[1738002677420,0.00314102,99337.0,99336.0,0.3608]
[1738002678507,0.00414102,99337.0,99336.0,0.3608]
[1738002678709,0.01014102,99337.0,99336.0,0.3618]
[1738002679423,0.11861221,99351.0,99345.0,0.201388]
[1738002679739,0.00299,99352.0,99350.0,0.562178]
[1738002679914,0.11861221,99364.0,99351.0,0.4539]
[1738002680106,0.11861221,99364.0,99363.0,0.3608]
[1738002680307,0.00299,99367.0,99366.0,0.201346]
[1738002680506,0.10019,99382.0,99364.0,0.3608]
[1738002680507,0.00015102,99373.0,99364.0,0.3608]
[1738002680714,0.00299,99382.0,99376.0,0.201325]
[1738002680917,0.00299,99382.0,99381.0,0.3608]
[1738002682025,0.201346,99366.0,99365.0,0.00144]
[1738002682211,0.201346,99366.0,99364.0,0.0369]
[1738002682612,0.3608,99365.0,99364.0,0.0369]
[1738002683314,0.201368,99355.0,99325.0,0.201428]
[1738002683510,0.562168,99355.0,99320.0,0.3608]
[1738002683712,0.562168,99355.0,99333.0,0.201412]
[1738002683913,0.562168,99355.0,99338.0,0.18063158]
[1738002684119,0.562168,99355.0,99340.0,0.1462655]
[1738002684319,9.701e-05,99364.0,99347.0,0.201384]
[1738002684524,0.201367,99356.0,99346.0,0.3608]
[1738002684822,0.201391,99344.0,99338.0,0.18063158]
[1738002685016,0.201391,99344.0,99338.0,0.18203158]
[1738002685017,0.3608,99344.0,99338.0,0.18203158]
[1738002685211,0.201401,99339.0,99338.0,0.18063158]
[1738002685816,0.3608,99360.0,99338.0,0.54143158]
[1738002686024,0.201371,99354.0,99347.0,0.201384]
[1738002686209,0.201372,99353.0,99348.0,0.201382]
[1738002686416,0.201355,99362.0,99352.0,0.201373]
[1738002686616,0.0902,99367.0,99349.0,0.3608]
[1738002686916,0.291544,99367.0,99363.0,0.3608]
[1738002687118,0.291544,99367.0,99358.0,0.3608]
[1738002687314,0.296533,99373.0,99350.0,0.2394655]
[1738002687624,0.0952,99373.0,99360.0,0.3608]
[1738002687923,0.1462655,99370.0,99351.0,0.00015094]
[1738002688121,0.00209701,99364.0,99351.0,0.00015094]
[1738002688323,0.00209701,99364.0,99358.0,0.3618]
[1738002688714,9.701e-05,99364.0,99358.0,0.563162]
[1738002688914,0.00109701,99364.0,99358.0,0.562162]
[1738002689217,0.00109701,99364.0,99362.0,0.201353]
[1738002689617,0.00109701,99364.0,99363.0,0.3608]
[1738002689824,0.1,99400.0,99363.0,0.3608]
[1738002690023,0.1,99400.0,99396.0,0.3608]
[1738002690827,0.201282,99398.0,99396.0,0.3608]
[1738002691329,0.00799,99397.0,99396.0,0.3608]
[1738002691516,0.00999,99397.0,99396.0,0.3608]
[1738002695037,0.00999,99397.0,99387.0,0.50721644]
[1738002695539,0.201301,99388.0,99387.0,0.00015094]
[1738002696021,0.3608,99392.0,99376.0,0.00150938]
[1738002696022,0.201324,99377.0,99376.0,0.00150938]
[1738002697826,0.201324,99377.0,99376.0,0.00350938]
[1738002698021,0.0955,99383.0,99376.0,0.00350938]
[1738002698225,0.0955,99383.0,99376.0,0.00450938]
[1738002698426,0.201288,99395.0,99376.0,0.36530938]
[1738002698634,0.3608,99396.0,99391.0,0.201295]
[1738002698822,0.0891,99405.0,99394.0,0.562089]
[1738002699519,0.0891,99405.0,99395.0,0.201286]
[1738002699727,0.0891,99405.0,99394.0,0.3608]
[1738002699935,0.20127,99404.0,99394.0,0.3608]
[1738002700639,0.00699,99397.0,99389.0,0.00887203]
[1738002700824,0.00799,99397.0,99386.0,0.0014]
[1738002701130,0.205274,99397.0,99379.0,0.201319]
[1738002701340,0.00799,99397.0,99385.0,0.3608]
[1738002701629,0.00799,99397.0,99393.0,0.3608]
[1738002701829,0.00599,99397.0,99393.0,0.3608]
[1738002703131,0.1,99400.0,99396.0,0.201284]
[1738002703437,0.1,99400.0,99394.0,0.288889]
[1738002703633,0.1,99400.0,99394.0,0.0876]
[1738002704141,0.002,99397.0,99394.0,0.0876]
[1738002704638,0.104,99400.0,99394.0,0.0876]
[1738002704834,0.105,99400.0,99394.0,0.288889]
[1738002705034,0.105,99400.0,99399.0,0.3608]
[1738002705225,0.00912117,99430.0,99399.0,0.3608]
[1738002705426,0.201225,99426.0,99411.0,0.3608]
[1738002705649,0.0946,99437.0,99411.0,0.3608]